bitfinex/quotes_BTCUSD_20250212
["timestamp","ask_amount","ask_price","bid_price","bid_amount"]
[1739344551707,0.17955369,96075.0,96070.0,0.00737102]
[1739344551910,0.17844859,96075.0,96070.0,0.0003632]
[1739344552107,0.17844859,96075.0,96071.0,0.00700782]
[1739344552313,0.17544859,96075.0,96070.0,0.0003632]
[1739344552511,0.17544859,96075.0,96070.0,0.0023632]
[1739344552917,0.17344859,96075.0,96070.0,0.0003632]
[1739344553610,0.01732059,96075.0,96070.0,0.0003632]
[1739344553813,0.15613,96074.0,96070.0,0.0003632]
[1739344554310,0.01742709,96075.0,96070.0,0.0003632]
[1739344554509,0.156129,96074.0,96070.0,0.0003632]
[1739344554719,0.01742709,96075.0,96070.0,0.0003632]
[1739344555116,0.001,96074.0,96070.0,0.0003632]
[1739344555382,0.157129,96074.0,96070.0,0.0003632]
[1739344555542,0.001,96074.0,96071.0,0.00700782]
[1739344555746,0.001,96074.0,96070.0,0.0003632]
[1739344555944,0.17355509,96075.0,96072.0,0.00700777]
[1739344556205,0.001,96074.0,96070.0,0.0013632]
[1739344556400,0.157129,96074.0,96073.0,0.00700772]
[1739344556732,0.156134,96071.0,96070.0,0.0013632]
[1739344556941,0.156134,96071.0,96070.0,0.001]
[1739344557573,0.156134,96071.0,96070.0,0.0003632]
[1739344557927,0.156134,96071.0,96070.0,0.0013632]
[1739344558340,0.15614,96068.0,96067.0,0.0003632]
[1739344559330,0.156141,96067.0,96060.0,4.42e-05]
[1739344559736,0.156141,96067.0,96066.0,0.0003632]
[1739344560480,0.001,96068.0,96066.0,0.0003632]
[1739344560687,0.157139,96068.0,96067.0,0.0003632]
[1739344560887,0.156146,96064.0,96060.0,4.42e-05]
[1739344561088,0.001,96068.0,96060.0,4.42e-05]
[1739344561089,0.003,96068.0,96060.0,4.42e-05]
[1739344561352,0.15615,96061.0,96060.0,4.42e-05]
[1739344562707,0.15615,96061.0,96060.0,0.0030442]
[1739344563523,0.15615,96061.0,96060.0,0.0034074]
[1739344563946,0.15615,96061.0,96060.0,0.0030442]
[1739344564150,0.15615,96061.0,96060.0,0.0034074]
[1739344565548,0.16809497,96061.0,96060.0,0.0034074]
[1739344566767,0.01950497,96061.0,96060.0,0.0034074]
[1739344566972,0.01950497,96061.0,96060.0,0.00363105]
[1739344571486,0.17565497,96061.0,96060.0,0.00363105]
[1739344574435,0.17565497,96061.0,96060.0,0.00326785]
[1739344576121,0.17865497,96061.0,96060.0,0.00326785]
[1739344576347,0.17565497,96061.0,96060.0,0.00026785]
[1739344576723,0.18065497,96061.0,96060.0,0.00026785]
[1739344577126,0.17865497,96061.0,96060.0,0.00026785]
[1739344577559,0.18165497,96061.0,96060.0,0.00026785]
[1739344580236,0.17963298,96061.0,96060.0,0.00026785]
[1739344580383,0.17761194,96061.0,96060.0,0.00026785]
[1739344581292,0.28011559,96061.0,96060.0,0.00026785]
[1739344582473,0.32871559,96061.0,96060.0,0.00026785]
[1739344585686,0.66949159,96061.0,96060.0,0.00026785]
[1739344585889,0.96099659,96061.0,96060.0,0.00026785]
[1739344587723,0.91595359,96061.0,96060.0,0.00026785]
[1739344587927,0.34502931,96061.0,96060.0,0.00026785]
[1739344588137,0.79939631,96061.0,96060.0,0.00026785]
[1739344588339,0.75549631,96061.0,96060.0,0.00026785]
[1739344588700,0.75249631,96061.0,96060.0,0.00026785]
[1739344589088,0.75549631,96061.0,96060.0,0.00026785]
[1739344589588,0.73870131,96061.0,96060.0,0.00026785]
[1739344589747,0.72393331,96061.0,96060.0,0.00026785]
[1739344590095,0.66916731,96061.0,96060.0,0.00026785]
[1739344591059,0.66616731,96061.0,96060.0,0.00026785]
[1739344591264,0.66916731,96061.0,96060.0,0.00026785]
[1739344591716,0.66616731,96061.0,96060.0,0.00026785]
[1739344591918,0.66916731,96061.0,96060.0,0.00026785]
[1739344592761,0.70001968,96061.0,96060.0,0.00026785]
[1739344593949,1.02841968,96061.0,96060.0,0.00026785]
[1739344594470,0.97981968,96061.0,96060.0,0.00026785]
[1739344594673,0.65568168,96061.0,96060.0,0.00026785]
[1739344594872,0.62482931,96061.0,96060.0,0.00026785]
[1739344595287,0.46111931,96061.0,96060.0,0.00026785]
[1739344595465,0.36613566,96061.0,96060.0,0.00026785]
[1739344595856,0.35861566,96061.0,96060.0,0.00026785]
[1739344596059,0.35861566,96061.0,96060.0,0.07626785]
[1739344596262,0.34230194,96061.0,96060.0,0.07663105]
[1739344597122,0.33930194,96061.0,96060.0,0.07663105]
[1739344597424,0.34030194,96061.0,96060.0,0.07663105]
[1739344598080,0.33730194,96061.0,96060.0,0.07663105]
[1739344598626,0.33930194,96061.0,96060.0,0.07663105]
[1739344599821,0.3314,96061.0,96060.0,0.07663105]
[1739344600037,0.003,96061.0,96060.0,0.07663105]
[1739344601141,0.001,96061.0,96060.0,0.07663105]
[1739344601375,0.003,96061.0,96060.0,0.07663105]
[1739344601579,0.002,96061.0,96060.0,0.07663105]
[1739344601963,0.004,96061.0,96060.0,0.07663105]
[1739344602191,0.0041066,96061.0,96060.0,0.07663105]
[1739344602397,0.0031066,96061.0,96060.0,0.07663105]
[1739344604751,0.0001066,96061.0,96060.0,0.07663105]
[1739344604978,0.0011066,96061.0,96060.0,0.07663105]
[1739344606868,0.0011066,96061.0,96060.0,0.07763105]
[1739344607282,0.0001066,96061.0,96060.0,0.07763105]
[1739344607546,0.0011066,96061.0,96060.0,0.07763105]
[1739344609567,0.0011066,96061.0,96060.0,0.23378305]
[1739344612150,0.0011066,96061.0,96060.0,0.28088305]
[1739344612983,0.0001066,96061.0,96060.0,0.27988305]
[1739344613101,0.0001066,96061.0,96060.0,0.28388305]
[1739344614234,0.0001066,96061.0,96060.0,0.27988305]
[1739344614677,0.0001066,96061.0,96060.0,0.28988305]
[1739344616862,0.0001066,96061.0,96060.0,0.29670643]
[1739344617061,0.0001066,96061.0,96060.0,0.38886294]
[1739344618640,0.0001066,96061.0,96060.0,0.29670643]
[1739344622478,0.0001066,96061.0,96060.0,0.28870643]
[1739344622680,0.01441765,96073.0,96064.0,0.156144]
[1739344623066,0.17355609,96075.0,96070.0,0.0003632]
[1739344623590,0.24025435,96075.0,96070.0,0.0003632]
[1739344623926,0.156134,96071.0,96070.0,0.0003632]
[1739344624330,0.208177,96072.0,96070.0,0.0003632]
[1739344624955,0.157134,96071.0,96070.0,0.0003632]
[1739344625302,0.156134,96071.0,96070.0,0.0003632]
[1739344625711,0.15614,96068.0,96067.0,0.0003632]
[1739344626141,0.156135,96071.0,96067.0,0.0003632]
[1739344626345,0.002,96072.0,96067.0,0.0003632]
[1739344626491,0.005,96072.0,96067.0,0.0003632]
[1739344626711,0.156134,96071.0,96070.0,0.0003632]
[1739344627281,0.158134,96071.0,96070.0,0.0003632]
[1739344627911,0.161134,96071.0,96070.0,0.0003632]
[1739344629556,0.158134,96071.0,96070.0,0.0003632]
[1739344629933,0.160134,96071.0,96070.0,0.0003632]
[1739344630649,0.158134,96071.0,96070.0,0.0003632]
[1739344630855,0.156134,96071.0,96070.0,0.0003632]
[1739344631069,0.158134,96071.0,96070.0,0.0003632]
[1739344631477,0.160134,96071.0,96070.0,0.0003632]
[1739344631853,0.158134,96071.0,96070.0,0.0003632]
[1739344632057,0.160134,96071.0,96070.0,0.0003632]
[1739344633948,0.004,96071.0,96070.0,0.0003632]
[1739344634968,0.002,96071.0,96070.0,0.0003632]
[1739344635192,0.003,96071.0,96070.0,0.0003632]
[1739344635752,0.003,96071.0,96070.0,0.17214982]
[1739344636063,0.001,96071.0,96070.0,0.25424982]
[1739344636267,0.003,96071.0,96070.0,0.2385992]
[1739344636757,0.002,96071.0,96070.0,0.2385992]
[1739344636983,0.001,96071.0,96070.0,0.2385992]
[1739344637398,0.0001066,96071.0,96070.0,0.34110285]
[1739344637605,0.0001066,96071.0,96070.0,0.39000285]
[1739344637890,0.0001066,96071.0,96070.0,0.49445994]
[1739344638273,0.0001066,96071.0,96070.0,0.49145994]
[1739344638655,0.0001066,96071.0,96070.0,0.50145994]
[1739344639062,0.0001066,96071.0,96070.0,0.40000285]
[1739344639235,0.0001066,96071.0,96070.0,0.40300285]
[1739344639417,0.0001066,96071.0,96070.0,0.40000285]
[1739344639859,0.0001066,96071.0,96070.0,0.40300285]
[1739344640275,0.0001066,96071.0,96070.0,0.39300285]
[1739344640470,0.0001066,96071.0,96070.0,0.49475994]
[1739344640676,0.0001066,96071.0,96070.0,0.50575994]
[1739344642529,0.0001066,96071.0,96070.0,0.40400285]
[1739344650383,0.0001066,96071.0,96070.0,0.42341697]
[1739344653361,0.0001066,96071.0,96070.0,0.74791697]
[1739344653655,0.0001066,96071.0,96070.0,0.76246542]
[1739344659013,0.0001066,96071.0,96070.0,0.91246542]
[1739344659165,0.0001066,96071.0,96070.0,1.01496907]
[1739344665678,0.015043,96108.0,96071.0,0.15]
[1739344665833,0.015043,96108.0,96080.0,0.09580253]
[1739344666038,0.156074,96108.0,96107.0,0.0003632]
[1739344666265,0.43187704,96131.0,96107.0,0.0003632]
[1739344666266,0.0001066,96110.0,96108.0,0.0003632]
[1739344666676,0.1563786,96109.0,96108.0,0.0003632]
[1739344666855,0.0003066,96109.0,96108.0,0.0003632]
[1739344667252,0.00043927,96109.0,96108.0,0.0003632]
[1739344667449,0.00443927,96109.0,96108.0,0.0013632]
[1739344667654,0.01908141,96109.0,96108.0,0.0013632]
[1739344668444,0.02493696,96109.0,96108.0,0.0013632]
[1739344668628,0.02493696,96109.0,96108.0,0.0003632]
[1739344668891,0.02093696,96109.0,96108.0,0.0003632]
[1739344669115,0.02493696,96109.0,96108.0,0.0013632]
[1739344669321,0.02093696,96109.0,96108.0,0.0003632]
[1739344669445,0.02293696,96109.0,96108.0,0.0013632]
[1739344669643,0.02693696,96109.0,96108.0,0.0013632]
[1739344669845,0.02493696,96109.0,96108.0,0.0003632]
[1739344670223,0.02693696,96109.0,96108.0,0.0003632]
[1739344672497,0.02693696,96109.0,96105.0,0.156079]
[1739344672742,0.02693696,96109.0,96108.0,0.0003632]
[1739344673284,0.02293696,96109.0,96108.0,0.0003632]
[1739344673482,0.02093696,96109.0,96108.0,0.0003632]
[1739344673688,0.02493696,96109.0,96108.0,0.00058685]
[1739344673908,0.02693696,96109.0,96108.0,0.00058685]
[1739344674105,0.02653696,96109.0,96108.0,0.00058685]
[1739344674287,0.02453696,96109.0,96108.0,0.00058685]
[1739344675529,0.02053696,96109.0,96108.0,0.00058685]
[1739344675738,0.02653696,96109.0,96108.0,0.00058685]
[1739344679098,0.02653696,96109.0,96108.0,0.15666085]
[1739344683202,0.02653696,96109.0,96108.0,0.00058685]
[1739344683546,0.02653696,96109.0,96108.0,0.15666085]
[1739344685025,0.02664346,96109.0,96108.0,0.15666085]
[1739344687903,0.02664346,96109.0,96108.0,0.00058685]
[1739344688045,0.02664346,96109.0,96108.0,0.15666085]
[1739344690248,0.00614577,96109.0,96108.0,0.15666085]
[1739344694414,0.00614577,96109.0,96108.0,0.16527916]
[1739344697287,0.01993439,96109.0,96108.0,0.00920516]
[1739344697682,0.01993439,96109.0,96108.0,0.16527916]
[1739344698031,0.01993439,96109.0,96108.0,0.00920516]
[1739344698239,0.01993439,96109.0,96108.0,0.16527916]
[1739344700842,0.01993439,96109.0,96108.0,0.22342828]
[1739344700990,0.01993439,96109.0,96108.0,0.16527916]
[1739344703010,0.00614577,96109.0,96108.0,0.16527916]
[1739344703212,0.00614577,96109.0,96108.0,0.35042317]
[1739344703420,0.00614577,96109.0,96108.0,0.24687916]
[1739344704235,0.00614577,96109.0,96108.0,0.09080516]
[1739344704469,0.00614577,96109.0,96108.0,0.00884196]
[1739344704598,0.16221777,96109.0,96108.0,0.00884196]
[1739344704802,0.00614577,96109.0,96108.0,0.00884196]
[1739344705000,0.00614577,96109.0,96108.0,0.00022365]
[1739344705991,0.00214577,96109.0,96108.0,0.00022365]
[1739344706522,0.00514577,96109.0,96108.0,0.00058685]
[1739344706718,0.00314577,96109.0,96108.0,0.00058685]
[1739344706956,0.00514577,96109.0,96108.0,0.00058685]
[1739344707531,0.00314577,96109.0,96108.0,0.00058685]
[1739344707931,0.00514577,96109.0,96108.0,0.00058685]
[1739344708121,0.00814577,96109.0,96108.0,0.00058685]
[1739344708473,0.00614577,96109.0,96108.0,0.00058685]
[1739344708884,0.00014577,96109.0,96108.0,0.00058685]
[1739344709083,0.00214577,96109.0,96108.0,0.00058685]
[1739344709283,0.00014577,96109.0,96108.0,0.00058685]
[1739344709725,0.00214577,96109.0,96108.0,0.00058685]
[1739344710029,0.00414577,96109.0,96108.0,0.00058685]
[1739344710457,0.15821777,96109.0,96108.0,0.00022365]
[1739344710872,0.16021777,96109.0,96108.0,0.00022365]
[1739344712479,0.15821777,96109.0,96108.0,0.00022365]
[1739344712835,0.16021777,96109.0,96108.0,0.00022365]
[1739344713036,0.00414577,96109.0,96108.0,0.00022365]
[1739344713481,0.00214577,96109.0,96108.0,0.00022365]
[1739344713813,0.00414577,96109.0,96108.0,0.00022365]
[1739344714012,0.00414577,96109.0,96108.0,0.00058685]
[1739344714218,0.00214577,96109.0,96108.0,0.00058685]
[1739344714455,0.00414577,96109.0,96108.0,0.00058685]
[1739344714842,0.16021777,96109.0,96108.0,0.00022365]
[1739344715065,0.16221777,96109.0,96108.0,0.00022365]
[1739344715481,0.00614577,96109.0,96108.0,0.00022365]
[1739344715872,0.00214577,96109.0,96108.0,0.00022365]
[1739344716079,0.00414577,96109.0,96108.0,0.00022365]
[1739344716284,0.00414577,96109.0,96108.0,0.00058685]
[1739344716433,0.00214577,96109.0,96108.0,0.00022365]
[1739344716858,0.00414577,96109.0,96108.0,0.00058685]
[1739344718577,0.00414577,96109.0,96108.0,0.00022365]
[1739344719010,0.00414577,96109.0,96108.0,0.00058685]
[1739344719386,0.00414577,96109.0,96108.0,0.00022365]
[1739344719588,0.00414577,96109.0,96108.0,0.00058685]
[1739344719973,0.00414577,96109.0,96108.0,0.00022365]
[1739344720195,0.16021777,96109.0,96108.0,0.00022365]
[1739344720515,0.00414577,96109.0,96108.0,0.00022365]
[1739344721222,0.16021777,96109.0,96108.0,0.00022365]
[1739344721442,0.00414577,96109.0,96108.0,0.00022365]
[1739344721875,0.00414577,96109.0,96108.0,0.00058685]
[1739344722228,0.00414577,96109.0,96108.0,0.00884933]
[1739344722426,0.00414577,96109.0,96108.0,0.00022365]
[1739344723861,0.00414577,96109.0,96108.0,0.00058685]
[1739344724813,0.00414577,96109.0,96108.0,0.00920726]
[1739344725021,0.00214577,96109.0,96108.0,0.00058685]
[1739344725237,0.00414577,96109.0,96108.0,0.00058685]
[1739344725608,0.00214577,96109.0,96108.0,0.00058685]
[1739344725991,0.00414577,96109.0,96108.0,0.00058685]
[1739344728237,0.208077,96118.0,96114.0,0.0003632]
[1739344728545,0.156063,96115.0,96114.0,0.0003632]
[1739344728739,0.25856665,96115.0,96114.0,0.0003632]
[1739344729148,0.27977861,96115.0,96114.0,0.0003632]
[1739344729785,0.28177861,96115.0,96114.0,0.0003632]
[1739344730369,0.27977861,96115.0,96114.0,0.0003632]
[1739344730548,0.28177861,96115.0,96114.0,0.0003632]
[1739344731526,0.28277861,96115.0,96114.0,0.0003632]
[1739344731701,0.28177861,96115.0,96114.0,0.0003632]
[1739344732019,0.28277861,96115.0,96114.0,0.0003632]
[1739344733261,0.02421196,96115.0,96114.0,0.0003632]
[1739344733460,0.03173196,96115.0,96114.0,0.0003632]
[1739344734226,0.03073196,96115.0,96114.0,0.0003632]
[1739344734637,0.03173196,96115.0,96114.0,0.0003632]
[1739344734853,0.03073196,96115.0,96114.0,0.0003632]
[1739344735044,0.02973196,96115.0,96114.0,0.0003632]
[1739344738712,0.02973196,96115.0,96114.0,0.0026258]
[1739344738917,0.02973196,96115.0,96114.0,0.0003632]
[1739344748526,0.02873196,96115.0,96114.0,0.0003632]
[1739344748751,0.02121196,96115.0,96114.0,0.0003632]
[1739344749021,0.02221196,96115.0,96114.0,0.0003632]
[1739344749429,0.02221196,96115.0,96114.0,0.0023632]
[1739344750678,0.02121196,96115.0,96114.0,0.0023632]
[1739344751007,0.02221196,96115.0,96114.0,0.0003632]
[1739344751216,0.02221196,96115.0,96114.0,0.0023632]
[1739344752587,0.02221196,96115.0,96114.0,0.0003632]
[1739344752767,0.02221196,96115.0,96114.0,0.04459859]
[1739344752967,0.02221196,96115.0,96114.0,0.0455632]
[1739344753233,0.02221196,96115.0,96114.0,0.1231632]
[1739344753442,0.02121196,96115.0,96114.0,0.1231632]
[1739344754043,0.02121196,96115.0,96114.0,0.2812272]
[1739344754455,0.02121196,96115.0,96114.0,0.2802272]
[1739344754704,0.02121196,96115.0,96114.0,0.2862272]
[1739344754855,0.02121196,96115.0,96114.0,0.28645106]
[1739344756664,0.02121196,96115.0,96114.0,0.28545106]
[1739344756865,0.02121196,96115.0,96114.0,0.27945106]
[1739344757242,0.02121196,96115.0,96114.0,0.28545106]
[1739344757627,0.02121196,96115.0,96114.0,0.28645106]
[1739344758320,0.02121196,96115.0,96114.0,0.35673723]
[1739344758649,0.02121196,96115.0,96114.0,0.28645106]
[1739344759913,0.02121196,96115.0,96114.0,0.25755106]
[1739344764415,0.02121196,96115.0,96114.0,0.24088786]
[1739344769610,0.02121196,96115.0,96114.0,0.23058786]
[1739344771226,0.3284,96143.0,96114.0,0.06442386]
[1739344771436,0.01286773,96129.0,96115.0,0.19754031]
[1739344771649,0.01293492,96137.0,96128.0,0.156041]
[1739344771864,0.0461,96160.0,96129.0,0.00104015]
[1739344772073,0.01332757,96158.0,96147.0,0.25181253]
[1739344772285,0.04623267,96160.0,96147.0,0.09580253]
[1739344772505,0.02124639,96148.0,96147.0,0.09580253]
[1739344772709,0.05941003,96160.0,96140.0,0.09580253]
[1739344772895,0.01331003,96160.0,96150.0,0.09580253]
[1739344773229,0.0959352,96160.0,96144.0,0.156015]
[1739344773420,0.02040412,96152.0,96144.0,0.156015]
[1739344773667,0.0969352,96160.0,96145.0,0.04476893]
[1739344773869,0.0959352,96160.0,96145.0,0.156014]
[1739344774073,0.0207773,96156.0,96133.0,0.0767]
[1739344774258,0.0207773,96156.0,96151.0,0.156003]
[1739344774629,0.0969352,96160.0,96147.0,0.0767]
[1739344774630,0.01097267,96160.0,96153.0,0.156]
[1739344774845,0.02134437,96157.0,96153.0,0.156]
[1739344775054,0.02134437,96157.0,96147.0,0.0767]
[1739344775256,0.00113267,96160.0,96148.0,0.08364526]
[1739344775484,0.00113267,96160.0,96158.0,0.1241]
[1739344775686,0.00213267,96160.0,96159.0,0.155991]
[1739344776114,0.00013267,96160.0,96159.0,0.145591]
[1739344776311,0.00113267,96160.0,96159.0,0.2141603]
[1739344776522,0.00113267,96160.0,96159.0,0.145591]
[1739344776764,0.00113267,96160.0,96159.0,0.24809465]
[1739344776969,0.00213267,96160.0,96159.0,0.24809465]
[1739344777170,0.00013267,96160.0,96159.0,0.24809465]
[1739344777327,0.00013267,96160.0,96159.0,0.145591]
[1739344777526,0.00113267,96160.0,96159.0,0.145591]
[1739344777724,0.00123917,96160.0,96159.0,0.145591]
[1739344778314,0.00123917,96160.0,96159.0,0.150591]
[1739344778715,0.00023917,96160.0,96159.0,0.2196603]
[1739344779537,0.00023917,96160.0,96159.0,0.151591]
[1739344785299,0.00023917,96160.0,96159.0,0.16290345]
[1739344785499,0.14740857,96190.0,96161.0,0.023]
[1739344785700,0.14740857,96190.0,96189.0,0.0767]
[1739344786136,0.14740857,96190.0,96189.0,0.01129411]
[1739344786546,0.14840857,96190.0,96182.0,0.155952]
[1739344786750,0.14740317,96190.0,96184.0,0.15595]
[1739344786951,0.14740317,96190.0,96181.0,0.155955]
[1739344787190,0.1677757,96190.0,96183.0,0.155951]
[1739344787384,0.1677757,96190.0,96180.0,0.155956]
[1739344787385,0.155942,96189.0,96180.0,0.155956]
[1739344787599,0.155942,96189.0,96178.0,0.0767]
[1739344787600,0.207923,96189.0,96178.0,0.0767]
[1739344787802,0.02037253,96190.0,96171.0,0.0789]
[1739344787803,0.08839853,96188.0,96171.0,0.0789]
[1739344787934,0.08839853,96188.0,96176.0,0.155963]
[1739344787935,0.14563345,96180.0,96176.0,0.155963]
[1739344788133,0.155947,96186.0,96176.0,0.155963]
[1739344788336,0.00972,96188.0,96176.0,0.155963]
[1739344788735,0.00972,96188.0,96177.0,0.155961]
[1739344788951,0.00972,96188.0,96180.0,0.155956]
[1739344789177,0.00972,96188.0,96181.0,0.01126833]
[1739344790047,0.00972,96188.0,96178.0,0.00022365]
[1739344790048,0.15,96189.0,96182.0,0.155953]
[1739344790270,0.00972,96187.0,96182.0,0.155953]
[1739344790656,0.15,96189.0,96182.0,0.155953]
[1739344790867,0.00968,96186.0,96182.0,0.155953]
[1739344791483,0.00968,96185.0,96182.0,0.157953]
[1739344791675,0.15,96189.0,96182.0,0.157953]
[1739344791859,0.00968,96186.0,96184.0,0.155949]
[1739344792055,0.001,96189.0,96182.0,0.002]
[1739344792259,0.17047903,96190.0,96187.0,0.155944]
[1739344792463,0.17047903,96190.0,96184.0,0.155949]
[1739344792872,0.17047903,96190.0,96182.0,0.002]
[1739344793231,0.00050501,96188.0,96185.0,0.155947]
[1739344793344,0.00050501,96188.0,96181.0,0.207939]
[1739344793544,0.00050501,96188.0,96185.0,0.155947]
[1739344794029,0.00050501,96188.0,96183.0,0.155951]
[1739344794230,0.00050501,96188.0,96182.0,0.002]
[1739344794624,0.00050501,96188.0,96184.0,0.15595]
[1739344795020,0.00050501,96188.0,96185.0,0.004]
[1739344796267,0.00050501,96188.0,96183.0,0.155951]
[1739344796411,0.00050501,96188.0,96184.0,0.155949]
[1739344796616,0.00050501,96188.0,96184.0,0.159949]
[1739344796997,0.00050501,96188.0,96182.0,0.155953]
[1739344797245,0.00050501,96188.0,96178.0,0.00022365]
[1739344797456,0.00050501,96188.0,96183.0,0.004]
[1739344797654,0.19514211,96187.0,96183.0,0.004]
[1739344797828,0.03919511,96187.0,96178.0,0.00022365]
[1739344798038,0.00050501,96188.0,96178.0,0.15618365]
[1739344798233,0.00050501,96188.0,96182.0,0.004]
[1739344798636,0.1694308,96190.0,96182.0,0.004]
[1739344798839,0.16662834,96190.0,96182.0,0.004]
[1739344799182,0.16662834,96190.0,96184.0,0.155949]
[1739344799356,0.16662834,96190.0,96185.0,0.00088748]
[1739344799555,0.001,96188.0,96184.0,0.155949]
[1739344799752,0.16662834,96190.0,96185.0,0.00088748]
[1739344800117,0.16662834,96190.0,96180.0,0.155956]
[1739344800321,0.16662834,96190.0,96178.0,0.00022365]
[1739344800322,0.155942,96189.0,96181.0,0.00087929]
[1739344800523,0.16662834,96190.0,96185.0,0.002]
[1739344800932,0.16662834,96190.0,96178.0,0.00022365]
[1739344801131,0.16662834,96190.0,96179.0,0.00087519]
[1739344801441,0.16662834,96190.0,96182.0,0.155953]
[1739344801645,0.16662834,96190.0,96180.0,0.18475068]
[1739344801825,0.16662834,96190.0,96183.0,0.01368385]
[1739344802034,0.16662834,96190.0,96180.0,0.18475068]
[1739344802035,0.16662834,96190.0,96180.0,0.155956]
[1739344802258,0.16762834,96190.0,96184.0,0.00088543]
[1739344802469,0.16762834,96190.0,96180.0,0.155956]
[1739344802893,0.155959,96179.0,96178.0,0.00022365]
[1739344803118,0.155958,96180.0,96178.0,0.00022365]
[1739344803312,0.155951,96184.0,96178.0,0.00022365]
[1739344803521,0.15,96186.0,96178.0,0.00022365]
[1739344803728,0.00984,96185.0,96178.0,0.00022365]
[1739344803944,0.15,96186.0,96179.0,0.021857]
[1739344804156,0.15,96186.0,96178.0,0.1027273]
[1739344804381,0.15,96186.0,96178.0,0.00022365]
[1739344804580,0.15,96186.0,96178.0,0.15618365]
[1739344804780,0.15,96189.0,96178.0,0.00022365]
[1739344804985,0.15,96189.0,96178.0,0.00422365]
[1739344805227,0.155944,96188.0,96178.0,0.00422365]
[1739344805431,0.155944,96188.0,96178.0,0.00402365]
[1739344805432,0.207926,96188.0,96178.0,0.00402365]
[1739344805645,0.15,96187.0,96178.0,0.00402365]
[1739344805848,0.155958,96180.0,96178.0,0.00402365]
[1739344806262,0.21773,96186.0,96178.0,0.00402365]
[1739344806475,0.155958,96180.0,96178.0,0.00402365]
[1739344806901,0.155958,96180.0,96178.0,2.365e-05]
[1739344808024,0.30159145,96180.0,96178.0,0.00112365]
[1739344808176,0.155958,96180.0,96178.0,0.00112365]
[1739344810214,0.15596,96179.0,96169.0,0.155974]
[1739344810427,0.155961,96178.0,96169.0,0.155974]
[1739344811018,0.155961,96178.0,96168.0,0.0809]
[1739344811202,0.155961,96178.0,96170.0,0.155973]
[1739344812209,0.155963,96177.0,96168.0,0.0809]
[1739344812410,0.02972,96180.0,96162.0,0.0809]
[1739344812411,0.04066201,96176.0,96162.0,0.0809]
[1739344812557,0.155979,96167.0,96156.0,0.155996]
[1739344812796,0.14563345,96166.0,96156.0,0.207995]
[1739344813197,0.14563345,96166.0,96159.0,0.155991]
[1739344813397,0.14563345,96166.0,96162.0,0.155986]
[1739344813594,0.155976,96169.0,96160.0,0.155988]
[1739344813785,0.155977,96168.0,96160.0,0.155988]
[1739344813991,0.155977,96168.0,96156.0,0.207995]
[1739344813992,0.155979,96167.0,96162.0,0.001]
[1739344814188,0.155984,96164.0,96162.0,0.001]
[1739344814394,0.207974,96166.0,96154.0,0.155998]
[1739344814593,0.207974,96166.0,96156.0,0.002]
[1739344814594,0.0596386,96166.0,96156.0,0.002]
[1739344814768,0.14563345,96170.0,96156.0,0.002]
[1739344815009,0.207969,96168.0,96156.0,0.155996]
[1739344815215,0.00972,96167.0,96154.0,0.155999]
[1739344815413,0.155984,96164.0,96155.0,0.155997]
[1739344815612,0.155985,96163.0,96155.0,0.155997]
[1739344817005,0.155985,96163.0,96162.0,0.003]
[1739344817570,0.155987,96162.0,96153.0,0.156001]
[1739344817780,0.00972,96167.0,96148.0,0.0813]
[1739344817991,0.00972,96167.0,96160.0,0.155989]
[1739344818382,0.00972,96167.0,96156.0,0.207994]
[1739344818588,0.155981,96166.0,96158.0,0.155992]
[1739344818800,0.15642306,96166.0,96162.0,0.004]
[1739344819973,0.15642306,96166.0,96158.0,0.155992]
[1739344820578,0.15642306,96166.0,96160.0,0.001]
[1739344820979,0.155982,96165.0,96158.0,0.155992]
[1739344821106,0.155982,96165.0,96158.0,0.157992]
[1739344821713,0.155982,96165.0,96158.0,0.155992]
[1739344822041,0.155982,96165.0,96160.0,0.002]
[1739344822620,0.00044206,96166.0,96160.0,0.002]
[1739344822817,0.15642206,96166.0,96160.0,0.002]
[1739344823120,0.00044206,96166.0,96160.0,0.157989]
[1739344823323,0.00044206,96166.0,96160.0,0.002]
[1739344823524,0.00044206,96166.0,96159.0,0.155991]
[1739344823953,0.00956,96165.0,96159.0,0.155991]
[1739344824832,0.00956,96165.0,96160.0,0.155989]
[1739344825030,0.00956,96165.0,96159.0,0.002]
[1739344825232,0.00956,96165.0,96160.0,0.155989]
[1739344826078,0.00956,96165.0,96162.0,0.155985]
[1739344826278,0.00956,96165.0,96155.0,0.207997]
[1739344826477,0.00956,96165.0,96160.0,0.155989]
[1739344826677,0.00956,96165.0,96161.0,0.155987]
[1739344826879,0.00956,96165.0,96162.0,0.155986]
[1739344828369,0.00044206,96166.0,96155.0,0.207997]
[1739344828370,0.00044206,96166.0,96165.0,0.284981]
[1739344828531,0.00044206,96166.0,96165.0,0.38748465]
[1739344830988,0.00044206,96166.0,96165.0,0.26048465]
[1739344831630,0.00044206,96166.0,96165.0,0.25848465]
[1739344831829,0.00044206,96166.0,96165.0,0.27348465]
[1739344832288,0.00044206,96166.0,96165.0,0.27746611]
[1739344832619,0.00044206,96166.0,96165.0,0.37569772]
[1739344833346,0.00044206,96166.0,96165.0,0.26246611]
[1739344833521,0.00044206,96166.0,96165.0,0.27446611]
[1739344833728,0.00044206,96166.0,96165.0,0.27646611]
[1739344833949,0.00044206,96166.0,96165.0,0.26246611]
[1739344834154,0.00044206,96166.0,96165.0,0.26046611]
[1739344834475,0.00044206,96166.0,96165.0,0.27946611]
[1739344834683,0.00044206,96166.0,96165.0,0.27446611]
[1739344834909,0.00044206,96166.0,96165.0,0.26546611]
[1739344835245,0.00044206,96166.0,96165.0,0.27446611]
[1739344835449,0.00044206,96166.0,96165.0,0.27946611]
[1739344836469,0.00044206,96166.0,96165.0,0.26546611]
[1739344836672,0.00044206,96166.0,96165.0,0.26046611]
[1739344837017,0.00044206,96166.0,96165.0,0.27946611]
[1739344837347,0.00044206,96166.0,96165.0,0.26546611]
[1739344837681,0.00044206,96166.0,96165.0,0.27710284]
[1739344837881,0.00044206,96166.0,96165.0,0.27732649]
[1739344839648,0.00044206,96166.0,96165.0,0.32506338]
[1739344840053,0.00044206,96166.0,96165.0,0.27732649]
[1739344843333,0.07913147,96190.0,96165.0,0.12370876]
[1739344843536,0.07913147,96190.0,96166.0,0.10250365]
[1739344843537,0.16683739,96180.0,96166.0,0.10250365]
[1739344843739,0.16683739,96180.0,96165.0,0.02120511]
[1739344843940,0.0465,96179.0,96167.0,0.0019378]
[1739344844113,0.207951,96177.0,96165.0,0.00522365]
[1739344844319,0.207954,96175.0,96165.0,0.00022365]